fUSD/lending_fUSD_20260621
["ID","MTS","AMOUNT","RATE_DAILY","PERIOD"]
[425955679,1782043864000,-500.0,0.00027671,2]
[425955657,1782043864000,-500.0,0.00027671,2]
[425955664,1782043864000,-500.0,0.00027671,2]
[425955661,1782043864000,-5157.88,0.00027671,2]
[425955659,1782043864000,-1490.46,0.00027671,2]
[425955663,1782043864000,-500.0,0.00027671,2]
[425955660,1782043864000,-568.41,0.00027671,2]
[425955665,1782043864000,-500.0,0.00027671,2]
[425955662,1782043864000,-500.0,0.00027671,2]
[425955673,1782043864000,-500.0,0.00027671,2]
[425955666,1782043864000,-500.0,0.00027671,2]
[425955667,1782043864000,-500.0,0.00027671,2]
[425955672,1782043864000,-500.0,0.00027671,2]
[425955670,1782043864000,-500.0,0.00027671,2]
[425955669,1782043864000,-500.0,0.00027671,2]
[425955668,1782043864000,-500.0,0.00027671,2]
[425955671,1782043864000,-908.25,0.00027671,2]
[425955674,1782043864000,-694.36,0.00027671,2]
[425955676,1782043864000,-500.0,0.00027671,2]
[425955675,1782043864000,-500.0,0.00027671,2]
[425955730,1782043865000,-500.0,0.00027671,2]
[425955727,1782043865000,-500.0,0.00027671,2]
[425955724,1782043865000,-9379.81,0.00027671,2]
[425955723,1782043865000,-500.0,0.00027671,2]
[425955726,1782043865000,-500.0,0.00027671,2]
[425955734,1782043865000,-542.64,0.00027671,2]
[425955725,1782043865000,-9193.94,0.00027671,2]
[425955733,1782043865000,-13098.52,0.00027671,2]
[425955729,1782043865000,-165.44810351,0.00027671,2]
[425955732,1782043865000,-500.0,0.00027671,2]
[425955731,1782043865000,-500.0,0.00027671,2]
[425955735,1782043865000,-500.0,0.00027671,2]
[425955737,1782043865000,-500.0,0.00027671,2]
[425955739,1782043865000,-500.0,0.00027671,2]
[425955743,1782043865000,-500.0,0.00027671,2]
[425955742,1782043865000,-3953.0,0.00027671,2]
[425955716,1782043865000,-500.0,0.00027671,2]
[425955736,1782043865000,-1090.99,0.00027671,2]
[425955728,1782043865000,-9762.8,0.00027671,2]
[425955722,1782043865000,-426.74110524,0.00027671,2]
[425955704,1782043865000,-500.0,0.00027671,2]
[425955718,1782043865000,-3494.12,0.00027671,2]
[425955741,1782043865000,-500.0,0.00027671,2]
[425955700,1782043865000,-500.0,0.00027671,2]
[425955702,1782043865000,-1690.010201,0.00027671,7]
[425955701,1782043865000,-500.0,0.00027671,2]
[425955708,1782043865000,-500.0,0.00027671,2]
[425955711,1782043865000,-2000.0,0.00027671,2]
[425955709,1782043865000,-1690.010201,0.00027671,7]
[425955707,1782043865000,-880.84,0.00027671,2]
[425955705,1782043865000,-1690.010201,0.00027671,7]
[425955706,1782043865000,-525.53193752,0.00027671,2]
[425955703,1782043865000,-500.0,0.00027671,2]
[425955710,1782043865000,-3502.01,0.00027671,2]
[425955715,1782043865000,-500.0,0.00027671,2]
[425955713,1782043865000,-1690.010201,0.00027671,7]
[425955712,1782043865000,-5756.01,0.00027671,2]
[425955714,1782043865000,-244.72887856,0.00027671,2]
[425955717,1782043865000,-500.0,0.00027671,2]
[425955719,1782043865000,-500.0,0.00027671,2]
[425955721,1782043865000,-500.0,0.00027671,2]
[425955720,1782043865000,-500.0,0.00027671,2]
[425955745,1782043865000,-500.0,0.00027671,2]
[425955750,1782043865000,-500.0,0.00027671,2]
[425955738,1782043865000,-500.0,0.00027671,2]
[425955770,1782043865000,-500.0,0.00027671,2]
[425955769,1782043865000,-8419.53,0.00027671,2]
[425955771,1782043865000,-500.0,0.00027671,2]
[425955774,1782043865000,-1177.81,0.00027671,2]
[425955772,1782043865000,-500.0,0.00027671,2]
[425955768,1782043865000,-5271.59,0.00027671,2]
[425955773,1782043865000,-4082.48,0.00027671,2]
[425955777,1782043865000,-6082.93,0.00027671,2]
[425955776,1782043865000,-500.0,0.00027671,2]
[425955778,1782043865000,-500.0,0.00027671,2]
[425955775,1782043865000,-500.0,0.00027671,2]
[425955780,1782043865000,-500.0,0.00027671,2]
[425955782,1782043865000,-629.12679171,0.00027671,2]
[425955781,1782043865000,-500.0,0.00027671,2]
[425955785,1782043865000,-500.0,0.00027671,2]
[425955784,1782043865000,-3970.75,0.00027671,2]
[425955783,1782043865000,-500.0,0.00027671,2]
[425955786,1782043865000,-3554.41,0.00027671,2]
[425955744,1782043865000,-500.0,0.00027671,2]
[425955762,1782043865000,-603.12087857,0.00027671,2]
[425955766,1782043865000,-500.0,0.00027671,2]
[425955779,1782043865000,-152.58506561,0.00027671,2]
[425955764,1782043865000,-7571.98,0.00027671,2]
[425955765,1782043865000,-500.0,0.00027671,2]
[425955747,1782043865000,-304.9533596,0.00027671,2]
[425955746,1782043865000,-500.0,0.00027671,2]
[425955748,1782043865000,-500.0,0.00027671,2]
[425955751,1782043865000,-500.0,0.00027671,2]
[425955749,1782043865000,-500.0,0.00027671,2]
[425955787,1782043865000,-500.0,0.00027671,2]
[425955755,1782043865000,-6743.01,0.00027671,2]
[425955754,1782043865000,-500.0,0.00027671,2]
[425955740,1782043865000,-3570.15,0.00027671,2]
[425955752,1782043865000,-500.0,0.00027671,2]
[425955757,1782043865000,-4546.06,0.00027671,2]
[425955767,1782043865000,-500.0,0.00027671,2]
[425955759,1782043865000,-500.0,0.00027671,2]
[425955756,1782043865000,-9051.47,0.00027671,2]
[425955763,1782043865000,-741.24,0.00027671,2]
[425955758,1782043865000,-500.0,0.00027671,2]
[425955760,1782043865000,-500.0,0.00027671,2]
[425955753,1782043865000,-3748.36,0.00027671,2]
[425955761,1782043865000,-500.0,0.00027671,2]
[425955825,1782043866000,-500.0,0.00027671,2]
[425955824,1782043866000,-500.0,0.00027671,2]
[425955823,1782043866000,-11148.58,0.00027671,2]
[425955827,1782043866000,-500.0,0.00027671,2]
[425955822,1782043866000,-174.92044405,0.00027671,2]
[425955819,1782043866000,-500.0,0.00027671,2]
[425955820,1782043866000,-500.0,0.00027671,2]
[425955835,1782043866000,-500.0,0.00027671,2]
[425955829,1782043866000,-500.0,0.00027671,2]
[425955828,1782043866000,-500.0,0.00027671,2]
[425955821,1782043866000,-557.99,0.00027671,2]
[425955826,1782043866000,-9170.86,0.00027671,2]
[425955840,1782043866000,-905.26,0.00027671,2]
[425955832,1782043866000,-500.0,0.00027671,2]
[425955839,1782043866000,-500.0,0.00027671,2]
[425955834,1782043866000,-500.0,0.00027671,2]
[425955830,1782043866000,-574.97006688,0.00027671,2]
[425955831,1782043866000,-500.0,0.00027671,2]
[425955838,1782043866000,-577.03,0.00027671,2]
[425955837,1782043866000,-500.0,0.00027671,2]
[425955836,1782043866000,-300.0,0.00027671,2]
[425955841,1782043866000,-7580.7,0.00027671,2]
[425955843,1782043866000,-500.0,0.00027671,2]
[425955845,1782043866000,-636.91,0.00027671,2]
[425955849,1782043866000,-7027.59,0.00027671,2]
[425955817,1782043866000,-560.48,0.00027671,2]
[425955833,1782043866000,-500.0,0.00027671,2]
[425955818,1782043866000,-500.0,0.00027671,2]
[425955802,1782043866000,-500.0,0.00027671,2]
[425955811,1782043866000,-3507.03,0.00027671,2]
[425955788,1782043866000,-5284.4,0.00027671,2]
[425955789,1782043866000,-500.0,0.00027671,2]
[425955796,1782043866000,-426.45775323,0.00027671,2]
[425955794,1782043866000,-500.0,0.00027671,2]
[425955793,1782043866000,-500.0,0.00027671,2]
[425955792,1782043866000,-500.0,0.00027671,2]
[425955800,1782043866000,-500.0,0.00027671,2]
[425955799,1782043866000,-500.0,0.00027671,2]
[425955844,1782043866000,-500.0,0.00027671,2]
[425955790,1782043866000,-500.0,0.00027671,2]
[425955791,1782043866000,-500.0,0.00027671,2]
[425955795,1782043866000,-500.0,0.00027671,2]
[425955798,1782043866000,-500.0,0.00027671,2]
[425955797,1782043866000,-500.0,0.00027671,2]
[425955801,1782043866000,-500.0,0.00027671,2]
[425955803,1782043866000,-500.0,0.00027671,2]
[425955804,1782043866000,-500.0,0.00027671,2]
[425955808,1782043866000,-500.0,0.00027671,2]
[425955809,1782043866000,-500.0,0.00027671,2]
[425955810,1782043866000,-491.40629313,0.00027671,2]
[425955805,1782043866000,-5634.66,0.00027671,2]
[425955806,1782043866000,-500.0,0.00027671,2]
[425955807,1782043866000,-8823.24,0.00027671,2]
[425955814,1782043866000,-500.0,0.00027671,2]
[425955813,1782043866000,-500.0,0.00027671,2]
[425955815,1782043866000,-500.0,0.00027671,2]
[425955812,1782043866000,-500.0,0.00027671,2]
[425955816,1782043866000,-500.0,0.00027671,2]
[425955850,1782043866000,-151.0,0.00027671,7]
[425955842,1782043866000,-500.0,0.00027671,2]
[425955846,1782043866000,-500.0,0.00027671,2]
[425955880,1782043866000,-500.0,0.00027671,2]
[425955883,1782043866000,-4621.09,0.00027671,2]
[425955878,1782043866000,-500.0,0.00027671,2]
[425955887,1782043866000,-500.0,0.00027671,2]
[425955881,1782043866000,-500.0,0.00027671,2]
[425955886,1782043866000,-4103.82,0.00027671,2]
[425955885,1782043866000,-524.99368868,0.00027671,2]
[425955892,1782043866000,-699.32,0.00027671,2]
[425955894,1782043866000,-4126.05,0.00027671,2]
[425955893,1782043866000,-500.0,0.00027671,2]
[425955889,1782043866000,-500.0,0.00027671,2]
[425955891,1782043866000,-500.0,0.00027671,2]
[425955888,1782043866000,-179.93213212,0.00027671,2]
[425955895,1782043866000,-5024.57,0.00027671,2]
[425955890,1782043866000,-500.0,0.00027671,2]
[425955896,1782043866000,-500.0,0.00027671,2]
[425955899,1782043866000,-606.47,0.00027671,2]
[425955897,1782043866000,-5559.63,0.00027671,2]
[425955898,1782043866000,-500.0,0.00027671,2]
[425955901,1782043866000,-629.21,0.00027671,2]
[425955906,1782043866000,-500.0,0.00027671,2]
[425955900,1782043866000,-619.09,0.00027671,2]
[425955903,1782043866000,-500.0,0.00027671,2]
[425955902,1782043866000,-500.0,0.00027671,2]
[425955905,1782043866000,-15685.64,0.00027671,2]
[425955847,1782043866000,-151.0,0.00027671,7]
[425955904,1782043866000,-500.0,0.00027671,2]
[425955879,1782043866000,-4355.02,0.00027671,2]
[425955884,1782043866000,-500.0,0.00027671,2]
[425955907,1782043866000,-1070.24,0.00027671,2]
[425955877,1782043866000,-500.0,0.00027671,2]
[425955882,1782043866000,-5253.04,0.00027671,2]
[425955848,1782043866000,-500.0,0.00027671,2]
[425955854,1782043866000,-3778.65,0.00027671,2]
[425955852,1782043866000,-151.0,0.00027671,7]
[425955855,1782043866000,-583.26,0.00027671,2]
[425955858,1782043866000,-500.0,0.00027671,2]
[425955860,1782043866000,-500.0,0.00027671,2]
[425955853,1782043866000,-7268.59,0.00027671,2]
[425955861,1782043866000,-510.83834531,0.00027671,2]
[425955863,1782043866000,-4333.78,0.00027671,2]
[425955856,1782043866000,-500.0,0.00027671,2]
[425955859,1782043866000,-151.0,0.00027671,7]
[425955864,1782043866000,-2092.72,0.00027671,2]
[425955851,1782043866000,-151.0,0.00027671,7]
[425955862,1782043866000,-500.0,0.00027671,2]
[425955876,1782043866000,-500.0,0.00027671,2]
[425955874,1782043866000,-500.0,0.00027671,2]
[425955873,1782043866000,-500.0,0.00027671,2]
[425955875,1782043866000,-698.41,0.00027671,2]
[425955857,1782043866000,-151.0,0.00027671,7]
[425955868,1782043866000,-504.3,0.00027671,2]
[425955870,1782043866000,-500.0,0.00027671,2]
[425955869,1782043866000,-500.0,0.00027671,2]
[425955872,1782043866000,-500.0,0.00027671,2]
[425955867,1782043866000,-500.0,0.00027671,2]
[425955865,1782043866000,-513.46,0.00027671,2]
[425955866,1782043866000,-500.0,0.00027671,2]
[425955871,1782043866000,-8399.97,0.00027671,2]
[425955949,1782043867000,-500.0,0.00027671,2]
[425955947,1782043867000,-500.0,0.00027671,2]
[425955945,1782043867000,-8710.73,0.00027671,2]
[425955943,1782043867000,-500.0,0.00027671,2]
[425955936,1782043867000,-2754.08,0.00027671,2]
[425955937,1782043867000,-582.33319464,0.00027671,2]
[425955942,1782043867000,-500.0,0.00027671,2]
[425955939,1782043867000,-500.0,0.00027671,2]
[425955941,1782043867000,-500.0,0.00027671,2]
[425955944,1782043867000,-500.0,0.00027671,2]
[425955940,1782043867000,-4939.61,0.00027671,2]
[425955950,1782043867000,-500.0,0.00027671,2]
[425955953,1782043867000,-500.0,0.00027671,2]
[425955952,1782043867000,-500.0,0.00027671,2]
[425955951,1782043867000,-500.0,0.00027671,2]
[425955955,1782043867000,-500.0,0.00027671,2]
[425955954,1782043867000,-500.0,0.00027671,2]
[425955957,1782043867000,-4078.59,0.00027671,2]
[425955956,1782043867000,-500.0,0.00027671,2]
[425955958,1782043867000,-631.48,0.00027671,2]
[425955960,1782043867000,-530.95,0.00027671,2]
[425955963,1782043867000,-500.0,0.00027671,2]
[425955965,1782043867000,-528.8,0.00027671,2]
[425955966,1782043867000,-521.61338754,0.00027671,2]
[425955938,1782043867000,-500.0,0.00027671,2]
[425955948,1782043867000,-500.0,0.00027671,2]
[425955934,1782043867000,-500.0,0.00027671,2]
[425955917,1782043867000,-535.14,0.00027671,2]
[425955929,1782043867000,-500.0,0.00027671,2]
[425955961,1782043867000,-762.22,0.00027671,2]
[425955910,1782043867000,-500.0,0.00027671,2]
[425955908,1782043867000,-500.0,0.00027671,2]
[425955909,1782043867000,-500.0,0.00027671,2]
[425955912,1782043867000,-500.0,0.00027671,2]
[425955915,1782043867000,-500.0,0.00027671,2]
[425955914,1782043867000,-946.64,0.00027671,2]
[425955922,1782043867000,-500.0,0.00027671,2]
[425955911,1782043867000,-500.0,0.00027671,2]
[425955913,1782043867000,-1206.67,0.00027671,2]
[425955920,1782043867000,-2865.46,0.00027671,2]
[425955918,1782043867000,-3488.29,0.00027671,2]
[425955916,1782043867000,-500.0,0.00027671,2]
[425955921,1782043867000,-945.48,0.00027671,2]
[425955919,1782043867000,-810.51,0.00027671,2]
[425955923,1782043867000,-4226.28,0.00027671,2]
[425955932,1782043867000,-1000.0,0.00027671,2]
[425955925,1782043867000,-904.85,0.00027671,2]
[425955924,1782043867000,-502.59586822,0.00027671,2]
[425955931,1782043867000,-4723.87,0.00027671,2]
[425955927,1782043867000,-717.93,0.00027671,2]
[425955933,1782043867000,-4918.1,0.00027671,2]
[425955926,1782043867000,-500.0,0.00027671,2]
[425955928,1782043867000,-500.0,0.00027671,2]
[425955930,1782043867000,-500.0,0.00027671,2]
[425955935,1782043867000,-500.0,0.00027671,2]
[425955962,1782043867000,-500.0,0.00027671,2]
[425955946,1782043867000,-4241.73,0.00027671,2]
[425955959,1782043867000,-2353.75,0.00027671,2]
[425956000,1782043867000,-643.09,0.00027671,2]
[425955993,1782043867000,-500.0,0.00027671,2]
[425955992,1782043867000,-530.70322852,0.00027671,2]
[425955994,1782043867000,-1020.5,0.00027671,2]
[425956001,1782043867000,-1902.38,0.00027671,2]
[425955998,1782043867000,-6436.65,0.00027671,2]
[425956002,1782043867000,-479.75618866,0.00027671,2]
[425956003,1782043867000,-1248.63,0.00027671,2]
[425956013,1782043867000,-1091.2,0.000279,2]
[425956008,1782043867000,-242.32,0.00027853,2]
[425956012,1782043867000,-1592.57,0.000279,2]
[425956006,1782043867000,-727.46,0.00027675,2]
[425956004,1782043867000,-500.0,0.00027671,2]
[425956011,1782043867000,-1000.0,0.000279,2]
[425956007,1782043867000,-983.0,0.00027762,2]
[425956005,1782043867000,-1728.38,0.00027675,2]
[425956010,1782043867000,-1938.83,0.000279,2]
[425956009,1782043867000,-256.86264304,0.00027894,2]
[425956021,1782043867000,-207.94,0.00027944,2]
[425956020,1782043867000,-1690.010192,0.000279,7]
[425956015,1782043867000,-927.77084688,0.000279,2]
[425956017,1782043867000,-1690.010201,0.000279,7]
[425956014,1782043867000,-3388.61262222,0.000279,2]
[425956016,1782043867000,-377.59197624,0.000279,2]
[425956018,1782043867000,-1690.010201,0.000279,7]
[425955997,1782043867000,-500.0,0.00027671,2]
[425955996,1782043867000,-500.0,0.00027671,2]
[425955964,1782043867000,-500.0,0.00027671,2]
[425955990,1782043867000,-4231.47,0.00027671,2]
[425955967,1782043867000,-598.89,0.00027671,2]
[425955970,1782043867000,-500.0,0.00027671,2]
[425955969,1782043867000,-500.0,0.00027671,2]
[425955968,1782043867000,-1076.55,0.00027671,2]
[425955975,1782043867000,-500.0,0.00027671,2]
[425955972,1782043867000,-500.0,0.00027671,2]
[425955974,1782043867000,-500.0,0.00027671,2]
[425955999,1782043867000,-500.0,0.00027671,2]
[425955973,1782043867000,-804.51,0.00027671,2]
[425955971,1782043867000,-500.0,0.00027671,2]
[425955977,1782043867000,-500.0,0.00027671,2]
[425955979,1782043867000,-272.77956183,0.00027671,2]
[425955989,1782043867000,-510.64709924,0.00027671,2]
[425955976,1782043867000,-500.0,0.00027671,2]
[425955980,1782043867000,-500.0,0.00027671,2]
[425955978,1782043867000,-500.0,0.00027671,2]
[425955991,1782043867000,-500.0,0.00027671,2]
[425955995,1782043867000,-500.0,0.00027671,2]
[425955988,1782043867000,-7023.89,0.00027671,2]
[425955985,1782043867000,-500.0,0.00027671,2]
[425955986,1782043867000,-500.0,0.00027671,2]
[425955984,1782043867000,-500.0,0.00027671,2]
[425955987,1782043867000,-500.0,0.00027671,2]
[425955981,1782043867000,-500.0,0.00027671,2]
[425955982,1782043867000,-500.0,0.00027671,2]
[425956019,1782043867000,-1690.010201,0.000279,7]
[425955983,1782043867000,-6494.57,0.00027671,2]
[425956059,1782043868000,-500.0,0.00027945,2]
[425956069,1782043868000,-500.0,0.00027945,2]
[425956070,1782043868000,-500.0,0.00027945,2]
[425956058,1782043868000,-554.07,0.00027945,2]
[425956056,1782043868000,-500.0,0.00027945,2]
[425956050,1782043868000,-500.0,0.00027945,2]
[425956057,1782043868000,-500.0,0.00027945,2]
[425956053,1782043868000,-500.0,0.00027945,2]
[425956054,1782043868000,-500.0,0.00027945,2]
[425956052,1782043868000,-500.0,0.00027945,2]
[425956055,1782043868000,-728.37,0.00027945,2]
[425956063,1782043868000,-500.0,0.00027945,2]
[425956074,1782043868000,-605.84028048,0.00027945,2]
[425956061,1782043868000,-500.0,0.00027945,2]
[425956060,1782043868000,-500.0,0.00027945,2]
[425956067,1782043868000,-500.0,0.00027945,2]
[425956066,1782043868000,-500.0,0.00027945,2]
[425956065,1782043868000,-500.0,0.00027945,2]
[425956068,1782043868000,-500.0,0.00027945,2]
[425956072,1782043868000,-500.0,0.00027945,2]
[425956071,1782043868000,-500.0,0.00027945,2]
[425956075,1782043868000,-500.0,0.00027945,2]
[425956077,1782043868000,-500.0,0.00027945,2]
[425956073,1782043868000,-500.0,0.00027945,2]
[425956051,1782043868000,-500.0,0.00027945,2]
[425956062,1782043868000,-543.22508646,0.00027945,2]
[425956049,1782043868000,-500.0,0.00027945,2]
[425956034,1782043868000,-632.28,0.00027945,2]
[425956038,1782043868000,-500.0,0.00027945,2]
[425956079,1782043868000,-1209.48,0.00027945,2]
[425956024,1782043868000,-500.0,0.00027945,2]
[425956025,1782043868000,-182.8685962,0.00027945,2]
[425956022,1782043868000,-500.0,0.00027945,2]
[425956023,1782043868000,-500.0,0.00027945,2]
[425956027,1782043868000,-500.0,0.00027945,2]
[425956029,1782043868000,-500.0,0.00027945,2]
[425956026,1782043868000,-519.83574775,0.00027945,2]
[425956030,1782043868000,-500.0,0.00027945,2]
[425956028,1782043868000,-500.0,0.00027945,2]
[425956037,1782043868000,-500.0,0.00027945,2]
[425956031,1782043868000,-500.0,0.00027945,2]
[425956035,1782043868000,-500.0,0.00027945,2]
[425956032,1782043868000,-725.19,0.00027945,2]
[425956036,1782043868000,-500.0,0.00027945,2]
[425956033,1782043868000,-500.0,0.00027945,2]
[425956039,1782043868000,-500.0,0.00027945,2]
[425956040,1782043868000,-500.0,0.00027945,2]
[425956042,1782043868000,-500.0,0.00027945,2]
[425956048,1782043868000,-500.0,0.00027945,2]
[425956045,1782043868000,-500.0,0.00027945,2]
[425956043,1782043868000,-500.0,0.00027945,2]
[425956046,1782043868000,-500.0,0.00027945,2]
[425956041,1782043868000,-551.55,0.00027945,2]
[425956047,1782043868000,-500.0,0.00027945,2]
[425956044,1782043868000,-500.0,0.00027945,2]
[425956078,1782043868000,-500.0,0.00027945,2]
[425956064,1782043868000,-500.0,0.00027945,2]
[425956081,1782043868000,-500.0,0.00027945,2]
[425956110,1782043868000,-500.0,0.00027945,2]
[425956108,1782043868000,-1262.83,0.00027945,2]
[425956116,1782043868000,-500.0,0.00027945,2]
[425956111,1782043868000,-500.0,0.00027945,2]
[425956113,1782043868000,-500.0,0.00027945,2]
[425956115,1782043868000,-500.0,0.00027945,2]
[425956117,1782043868000,-500.0,0.00027945,2]
[425956112,1782043868000,-500.0,0.00027945,2]
[425956118,1782043868000,-500.0,0.00027945,2]
[425956120,1782043868000,-500.0,0.00027945,2]
[425956126,1782043868000,-500.0,0.00027945,2]
[425956123,1782043868000,-500.0,0.00027945,2]
[425956130,1782043868000,-500.0,0.00027945,2]
[425956122,1782043868000,-500.0,0.00027945,2]
[425956127,1782043868000,-500.0,0.00027945,2]
[425956128,1782043868000,-500.0,0.00027945,2]
[425956124,1782043868000,-500.0,0.00027945,2]
[425956125,1782043868000,-500.0,0.00027945,2]
[425956121,1782043868000,-500.0,0.00027945,2]
[425956129,1782043868000,-500.0,0.00027945,2]
[425956133,1782043868000,-500.0,0.00027945,2]
[425956131,1782043868000,-1011.4,0.00027945,2]
[425956135,1782043868000,-500.0,0.00027945,2]
[425956132,1782043868000,-500.0,0.00027945,2]
[425956134,1782043868000,-500.0,0.00027945,2]
[425956109,1782043868000,-500.0,0.00027945,2]
[425956119,1782043868000,-500.0,0.00027945,2]
[425956114,1782043868000,-506.49,0.00027945,2]
[425956106,1782043868000,-500.0,0.00027945,2]
[425956076,1782043868000,-500.0,0.00027945,2]
[425956080,1782043868000,-605.82,0.00027945,2]
[425956094,1782043868000,-613.8540607,0.00027945,2]
[425956095,1782043868000,-500.0,0.00027945,2]
[425956083,1782043868000,-500.0,0.00027945,2]
[425956084,1782043868000,-500.0,0.00027945,2]
[425956103,1782043868000,-500.0,0.00027945,2]
[425956086,1782043868000,-500.0,0.00027945,2]
[425956087,1782043868000,-500.0,0.00027945,2]
[425956089,1782043868000,-500.0,0.00027945,2]
[425956092,1782043868000,-501.82455083,0.00027945,2]
[425956085,1782043868000,-500.0,0.00027945,2]
[425956091,1782043868000,-500.0,0.00027945,2]
[425956093,1782043868000,-500.0,0.00027945,2]
[425956090,1782043868000,-617.24,0.00027945,2]
[425956088,1782043868000,-552.58912641,0.00027945,2]
[425956105,1782043868000,-500.0,0.00027945,2]
[425956104,1782043868000,-500.0,0.00027945,2]
[425956100,1782043868000,-500.0,0.00027945,2]
[425956098,1782043868000,-500.0,0.00027945,2]
[425956099,1782043868000,-544.21,0.00027945,2]
[425956082,1782043868000,-500.0,0.00027945,2]
[425956097,1782043868000,-552.46039231,0.00027945,2]
[425956107,1782043868000,-500.0,0.00027945,2]
[425956102,1782043868000,-500.0,0.00027945,2]
[425956096,1782043868000,-500.0,0.00027945,2]
[425956136,1782043868000,-500.0,0.00027945,2]
[425956101,1782043868000,-773.57,0.00027945,2]
[425956151,1782043869000,-500.0,0.00027945,2]
[425956149,1782043869000,-500.0,0.00027945,2]
[425956150,1782043869000,-1874.59,0.00027945,2]
[425956154,1782043869000,-500.0,0.00027945,2]
[425956145,1782043869000,-500.0,0.00027945,2]
[425956147,1782043869000,-1508.78,0.00027945,2]
[425956148,1782043869000,-500.0,0.00027945,2]
[425956139,1782043869000,-500.0,0.00027945,2]
[425956143,1782043869000,-1214.91,0.00027945,2]
[425956137,1782043869000,-500.0,0.00027945,2]
[425956140,1782043869000,-500.0,0.00027945,2]
[425956141,1782043869000,-500.0,0.00027945,2]
[425956142,1782043869000,-500.0,0.00027945,2]
[425956144,1782043869000,-557.29,0.00027945,2]
[425956138,1782043869000,-500.0,0.00027945,2]
[425956146,1782043869000,-500.0,0.00027945,2]
[425956153,1782043869000,-500.0,0.00027945,2]
[425956152,1782043869000,-500.0,0.00027945,2]
[425956173,1782043869000,-500.0,0.00027945,2]
[425956169,1782043869000,-500.0,0.00027945,2]
[425956165,1782043869000,-848.5,0.00027945,2]
[425956163,1782043869000,-500.0,0.00027945,2]
[425956164,1782043869000,-500.0,0.00027945,2]
[425956161,1782043869000,-500.0,0.00027945,2]
[425956171,1782043869000,-500.0,0.00027945,2]
[425956162,1782043869000,-500.0,0.00027945,2]
[425956158,1782043869000,-500.0,0.00027945,2]
[425956160,1782043869000,-500.0,0.00027945,2]
[425956157,1782043869000,-1153.68,0.00027945,2]
[425956156,1782043869000,-500.0,0.00027945,2]
[425956159,1782043869000,-500.0,0.00027945,2]
[425956155,1782043869000,-642.95,0.00027945,2]
[425956275,1782043870000,-500.0,0.00027945,2]
[425956267,1782043870000,-500.0,0.00027945,2]
[425956270,1782043870000,-1023.04,0.00027945,2]
[425956266,1782043870000,-500.0,0.00027945,2]
[425956271,1782043870000,-500.0,0.00027945,2]
[425956269,1782043870000,-500.0,0.00027945,2]
[425956273,1782043870000,-500.0,0.00027945,2]
[425956263,1782043870000,-500.0,0.00027945,2]
[425956272,1782043870000,-500.0,0.00027945,2]
[425956284,1782043870000,-799.33,0.00027945,2]
[425956264,1782043870000,-500.0,0.00027945,2]